bitfinex/quotes_BTCUSD_20250108
["timestamp","ask_amount","ask_price","bid_price","bid_amount"]
[1736349260622,0.00827184,95295.0,95289.0,0.10429976]
[1736349260884,0.00827184,95295.0,95290.0,0.07148924]
[1736349261113,0.00827184,95295.0,95293.0,0.000104]
[1736349261342,0.00050257,95295.0,95254.0,0.209963]
[1736349261572,0.00050257,95295.0,95271.0,0.09533839]
[1736349261809,0.00050257,95295.0,95274.0,0.10429976]
[1736349262063,0.00050257,95295.0,95280.0,0.29394379]
[1736349262288,0.34334744,95294.0,95285.0,0.10429976]
[1736349262512,0.34334744,95294.0,95286.0,0.023]
[1736349262726,0.34334744,95294.0,95288.0,0.023]
[1736349262958,0.3510881,95294.0,95290.0,0.023]
[1736349263182,0.3510881,95294.0,95292.0,0.023]
[1736349263429,0.3510881,95294.0,95293.0,0.12729976]
[1736349263697,0.3510881,95294.0,95293.0,0.09100258]
[1736349263971,0.00774066,95294.0,95293.0,0.07044]
[1736349264218,0.00774066,95294.0,95293.0,0.17473976]
[1736349264987,0.00774066,95294.0,95250.0,0.29394379]
[1736349265207,0.15774066,95294.0,95251.0,0.10429976]
[1736349265708,0.15774066,95294.0,95252.0,0.07044]
[1736349265934,0.15774066,95294.0,95278.0,0.02073198]
[1736349266164,0.15774066,95294.0,95279.0,0.07044]
[1736349266416,0.00774066,95293.0,95279.0,0.07044]
[1736349266641,0.00774066,95293.0,95280.0,0.023]
[1736349266891,0.18590096,95284.0,95280.0,0.12729976]
[1736349267882,0.18590096,95284.0,95282.0,0.023]
[1736349268123,0.00774066,95283.0,95282.0,0.023]
[1736349268356,0.00774066,95283.0,95282.0,0.17477976]
[1736349268636,0.00761441,95283.0,95282.0,0.17477976]
[1736349268873,0.00761441,95283.0,95282.0,0.21733093]
[1736349269328,0.00050257,95295.0,95282.0,0.14685093]
[1736349269562,0.00050257,95295.0,95283.0,0.10429976]
[1736349270316,0.00050257,95295.0,95284.0,0.07048]
[1736349270564,0.00050257,95295.0,95285.0,0.07048]
[1736349271316,0.00050257,95295.0,95278.0,0.02073198]
[1736349271542,0.00050257,95295.0,95286.0,0.07048]
[1736349272049,0.00050257,95295.0,95279.0,0.10429976]
[1736349272050,0.1393239,95289.0,95279.0,0.10429976]
[1736349272301,0.1393239,95289.0,95287.0,0.09960362]
[1736349272827,0.1393239,95289.0,95288.0,0.20989]
[1736349273075,0.12226495,95289.0,95288.0,0.34513912]
[1736349273350,0.18590096,95293.0,95288.0,0.34513912]
[1736349273351,0.12226495,95299.0,95298.0,0.209867]
[1736349273642,0.18590096,95302.0,95298.0,0.31416676]
[1736349273850,0.27916024,95314.0,95304.0,0.29394379]
[1736349274062,0.27916024,95314.0,95309.0,0.419685]
[1736349274271,0.23744982,95314.0,95311.0,0.12729976]
[1736349274474,0.48089713,95319.0,95311.0,0.12729976]
[1736349274657,0.09286323,95325.0,95318.0,0.10429976]
[1736349274869,0.09286323,95325.0,95310.0,0.07136288]
[1736349274870,0.07140323,95325.0,95324.0,0.23281]
[1736349275091,0.18572647,95333.0,95327.0,0.023]
[1736349275298,0.18572647,95333.0,95328.0,0.10429976]
[1736349275499,0.18572647,95333.0,95332.0,0.02104228]
[1736349275705,0.18572647,95333.0,95332.0,0.09152228]
[1736349275935,0.18572647,95333.0,95332.0,0.02104228]
[1736349276142,0.18572647,95333.0,95328.0,0.10445188]
[1736349276372,0.15131109,95357.0,95332.0,0.07048]
[1736349276574,0.25429976,95357.0,95328.0,0.10445188]
[1736349276778,0.25429976,95357.0,95333.0,0.07048]
[1736349277395,0.1,95373.0,95333.0,0.07048]
[1736349277598,0.10561069,95365.0,95333.0,0.07048]
[1736349277809,0.15,95364.0,95334.0,0.10429976]
[1736349278018,0.15,95364.0,95335.0,0.01749319]
[1736349278225,0.15,95364.0,95336.0,0.10429976]
[1736349278664,0.1,95361.0,95310.0,0.57514767]
[1736349278907,0.1,95349.0,95290.0,0.29394379]
[1736349279126,0.10429976,95348.0,95329.0,0.07044]
[1736349279546,0.1,95353.0,95330.0,0.00705921]
[1736349279751,0.1,95353.0,95331.0,0.07044]
[1736349280308,0.1,95353.0,95332.0,0.07044]
[1736349280807,0.1,95353.0,95319.0,0.02114438]
[1736349281015,0.1,95353.0,95329.0,0.07044]
[1736349281453,0.00776382,95352.0,95329.0,0.07044]
[1736349281655,0.10776382,95352.0,95330.0,0.00705921]
[1736349282076,0.10776382,95352.0,95331.0,0.07044]
[1736349282077,0.1,95346.0,95331.0,0.07044]
[1736349282314,0.1,95341.0,95319.0,0.02114438]
[1736349282520,0.1,95334.0,95308.0,0.02077254]
[1736349282675,0.10131128,95337.0,95304.0,0.01308135]
[1736349282889,0.1,95337.0,95324.0,0.07044]
[1736349283289,0.1291,95338.0,95328.0,0.00721133]
[1736349284662,0.00776382,95337.0,95328.0,0.00721133]
[1736349285050,0.00776382,95337.0,95329.0,0.09181546]
[1736349285715,0.00776382,95337.0,95330.0,0.07044]
[1736349286140,0.00776382,95336.0,95328.0,0.00015212]
[1736349286313,0.00776382,95336.0,95331.0,0.07854645]
[1736349286584,0.00776382,95336.0,95328.0,0.00015212]
[1736349286794,0.1,95333.0,95332.0,0.010182]
[1736349287001,0.20561113,95333.0,95328.0,0.00015212]
[1736349287250,0.15,95331.0,95328.0,0.00015212]
[1736349287544,0.03173703,95330.0,95328.0,0.00015212]
[1736349287679,0.1,95329.0,95328.0,0.00015212]
[1736349287922,0.15,95331.0,95328.0,0.00015212]
[1736349288310,0.00776382,95333.0,95328.0,0.00015212]
[1736349288949,0.13959383,95329.0,95328.0,0.00015212]
[1736349289381,0.13959383,95329.0,95296.0,0.209871]
[1736349289382,0.1,95301.0,95259.0,0.209952]
[1736349289585,0.15,95309.0,95302.0,0.00015216]
[1736349289786,0.03180827,95308.0,95302.0,0.00015216]
[1736349290023,0.01314704,95318.0,95302.0,0.00015216]
[1736349290227,0.03181193,95317.0,95302.0,0.00015216]
[1736349290438,0.1,95307.0,95302.0,0.00015216]
[1736349290650,0.18181193,95306.0,95302.0,0.00015216]
[1736349290802,0.03181193,95305.0,95302.0,0.00015216]
[1736349291426,0.23256942,95305.0,95302.0,0.00015216]
[1736349291627,0.23256942,95305.0,95294.0,0.06836]
[1736349291968,0.23256942,95305.0,95295.0,0.075196]
[1736349292620,0.09315939,95305.0,95295.0,0.075196]
[1736349292987,0.09315939,95305.0,95296.0,0.10429976]
[1736349293367,0.09315939,95305.0,95297.0,0.01033767]
[1736349293603,0.34387706,95315.0,95301.0,0.02114433]
[1736349293604,0.09315939,95309.0,95301.0,0.02114433]
[1736349293854,0.09315939,95309.0,95302.0,0.14638424]
[1736349294621,0.09315939,95309.0,95301.0,0.02114433]
[1736349294843,0.09315939,95309.0,95303.0,0.06836]
[1736349295009,0.09315939,95323.0,95303.0,0.06836]
[1736349295208,0.09315939,95323.0,95301.0,0.12544409]
[1736349295653,0.09315939,95323.0,95302.0,0.06836]
[1736349295827,0.09315939,95323.0,95302.0,0.05836]
[1736349296032,0.09315939,95323.0,95303.0,0.06836]
[1736349296270,0.09315939,95317.0,95303.0,0.06836]
[1736349296660,0.09315939,95317.0,95304.0,0.01938041]
[1736349296868,0.09315939,95317.0,95305.0,0.10429976]
[1736349297449,0.09315939,95317.0,95306.0,0.01029763]
[1736349297739,0.09315939,95313.0,95306.0,0.11459739]
[1736349297929,0.09315939,95313.0,95306.0,0.01029763]
[1736349298165,0.1,95308.0,95306.0,0.01029763]
[1736349298374,0.1,95296.0,95256.0,0.03205466]
[1736349298582,0.1,95296.0,95252.0,0.042036]
[1736349298583,0.43344206,95295.0,95278.0,0.06836]
[1736349298797,0.4321303,95295.0,95278.0,0.06836]
[1736349299195,0.4321303,95295.0,95270.0,0.021276]
[1736349299196,0.4321303,95295.0,95277.0,0.06836]
[1736349299827,0.43201909,95295.0,95270.0,0.021276]
[1736349300143,0.4398133,95295.0,95277.0,0.06836]
[1736349300338,0.4398133,95295.0,95278.0,0.06836]
[1736349300575,0.42985357,95295.0,95278.0,0.06836]
[1736349300795,0.39802303,95295.0,95278.0,0.06836]
[1736349301042,0.39802303,95295.0,95278.0,0.00050257]
[1736349301252,0.1,95291.0,95278.0,0.00050257]
[1736349301459,0.1,95285.0,95278.0,0.00050257]
[1736349301671,0.21274638,95284.0,95278.0,0.00050257]
[1736349301877,0.03184662,95283.0,95278.0,0.00050257]
[1736349302084,0.0766,95284.0,95278.0,0.00050257]
[1736349302738,0.00779421,95283.0,95278.0,0.00050257]
[1736349302915,0.28817121,95283.0,95278.0,0.00050257]
[1736349303657,0.28817121,95283.0,95280.0,0.209906]
[1736349303794,0.34434003,95282.0,95281.0,0.14260659]
[1736349303995,0.34434003,95282.0,95281.0,0.16560659]
[1736349304442,0.280377,95286.0,95283.0,0.2099]
[1736349304657,0.31405527,95297.0,95285.0,0.12729976]
[1736349304873,0.31405527,95297.0,95286.0,0.10429976]
[1736349305087,0.0766,95328.0,95286.0,0.10429976]
[1736349305088,0.09360163,95293.0,95287.0,0.10572305]
[1736349305300,0.09360163,95293.0,95281.0,0.05943574]
[1736349305514,0.17660163,95293.0,95282.0,0.06836]
[1736349305721,0.09360163,95293.0,95283.0,0.10429976]
[1736349305936,0.09360163,95293.0,95282.0,0.06836]
[1736349306152,0.09360163,95293.0,95278.0,0.00050257]
[1736349306153,0.09360163,95295.0,95284.0,0.01039552]
[1736349306412,0.1,95289.0,95278.0,0.06886257]
[1736349307237,0.1,95289.0,95278.0,0.00050257]
[1736349307238,0.15,95287.0,95278.0,0.00050257]
[1736349307442,0.15,95287.0,95279.0,0.06836]
[1736349307642,0.1,95284.0,95279.0,0.06836]
[1736349307847,0.1,95279.0,95278.0,0.00050257]
[1736349308488,0.35,95279.0,95278.0,0.00050257]
[1736349308961,0.1,95266.0,95228.0,0.210022]
[1736349309153,0.1,95268.0,95250.0,0.06836]
[1736349309350,0.1,95270.0,95255.0,0.00685312]
[1736349309564,0.1,95270.0,95250.0,0.06836]
[1736349309998,0.2269,95278.0,95255.0,0.17269976]
[1736349310214,0.2269,95278.0,95235.0,0.03520086]
[1736349310215,0.1,95275.0,95235.0,0.03520086]
[1736349310422,0.1,95264.0,95235.0,0.0142013]
[1736349310638,0.1,95263.0,95235.0,0.0142013]
[1736349310809,0.1,95260.0,95247.0,0.0684]
[1736349311229,0.1,95260.0,95246.0,0.0684]
[1736349311446,0.1,95260.0,95247.0,0.0684]
[1736349311641,0.1,95260.0,95235.0,0.0142013]
[1736349311850,0.35,95255.0,95235.0,0.0142013]
[1736349312072,0.45429976,95255.0,95235.0,0.0142013]
[1736349312657,0.559975,95249.0,95235.0,0.0142013]
[1736349312894,0.66427476,95249.0,95235.0,0.0142013]
[1736349313275,0.35,95240.0,95235.0,0.0142013]
[1736349313475,0.45429976,95240.0,95235.0,0.0142013]
[1736349313857,0.454802,95240.0,95235.0,0.0142013]
[1736349314064,0.46517906,95240.0,95235.0,0.0142013]
[1736349314314,0.454802,95240.0,95235.0,0.0142013]
[1736349314855,0.50734519,95240.0,95235.0,0.0142013]
[1736349315192,0.1,95236.0,95235.0,0.0142013]
[1736349315367,0.45561253,95236.0,95235.0,0.0142013]
[1736349315568,0.60846614,95236.0,95235.0,0.0142013]
[1736349315985,0.65885809,95236.0,95235.0,0.0142013]
[1736349316616,0.65885809,95236.0,95209.0,0.000105]
[1736349316617,0.1,95216.0,95209.0,0.000105]
[1736349316842,0.2251,95210.0,95209.0,0.000105]
[1736349317080,0.05375976,95210.0,95209.0,0.000105]
[1736349317202,0.1,95222.0,95209.0,0.000105]
[1736349317401,0.1,95222.0,95209.0,0.067585]
[1736349317840,0.1,95217.0,95209.0,0.000105]
[1736349318039,0.2,95212.0,95209.0,0.000105]
[1736349318219,0.15,95211.0,95209.0,0.000105]
[1736349318453,0.00050224,95222.0,95209.0,0.000105]
[1736349318686,0.00050224,95222.0,95209.0,0.10440476]
[1736349318856,0.00050224,95222.0,95210.0,0.0211656]
[1736349319232,0.00050224,95222.0,95210.0,0.01072512]
[1736349319510,0.1,95219.0,95210.0,0.01072512]
[1736349319722,0.1,95213.0,95209.0,0.000105]
[1736349319994,0.00050224,95222.0,95209.0,0.000105]
[1736349320401,0.00050224,95222.0,95210.0,0.06752]
[1736349320605,0.00050224,95222.0,95211.0,0.06752]
[1736349321016,0.00050224,95222.0,95209.0,0.000105]
[1736349321228,0.1,95217.0,95209.0,0.000105]
[1736349321428,0.1,95217.0,95204.0,0.066425]
[1736349321429,0.1,95211.0,95204.0,0.066425]
[1736349321643,0.1,95206.0,95200.0,0.0001653]
[1736349322081,0.1,95206.0,95194.0,0.0664853]
[1736349322290,0.1,95203.0,95194.0,0.0664853]
[1736349322482,0.0495,95199.0,95191.0,0.06752]
[1736349323314,0.0495,95199.0,95190.0,0.06752]
[1736349323525,0.0495,95199.0,95186.0,7e-05]
[1736349323526,0.1,95193.0,95186.0,7e-05]
[1736349323732,0.1,95193.0,95181.0,0.06752]
[1736349324346,0.1,95193.0,95173.0,0.02090258]
[1736349324593,0.1,95189.0,95174.0,0.06752]
[1736349324795,0.1,95189.0,95175.0,0.06752]
[1736349325001,0.1,95189.0,95176.0,0.06752]
[1736349325193,0.1,95178.0,95177.0,0.06752]
[1736349325370,0.1,95184.0,95165.0,0.02117604]
[1736349325577,0.1,95175.0,95162.0,0.06752]
[1736349325775,0.1,95175.0,95163.0,0.06752]
[1736349326011,0.1,95175.0,95139.0,0.042091]
[1736349326158,0.25,95162.0,95142.0,0.10429976]
[1736349326357,0.1,95160.0,95141.0,0.0142013]
[1736349327015,0.1,95150.0,95143.0,0.02084013]
[1736349327209,0.1,95146.0,95141.0,0.0142013]
[1736349327414,0.15,95145.0,95141.0,0.0142013]
[1736349327623,0.2,95142.0,95141.0,0.0142013]
[1736349327819,0.45429976,95142.0,95141.0,0.0142013]
[1736349328514,0.35,95142.0,95141.0,0.0142013]
[1736349329074,0.45429976,95142.0,95141.0,0.0142013]
[1736349329313,0.45429976,95142.0,95126.0,8.53e-05]
[1736349329314,0.3249,95127.0,95126.0,8.53e-05]
[1736349329524,0.1,95115.0,95104.0,8.53e-05]
[1736349329731,0.1,95126.0,95104.0,8.53e-05]
[1736349329947,0.1,95141.0,95114.0,0.10429976]
[1736349330153,0.3,95166.0,95114.0,0.10429976]
[1736349330154,0.10429976,95163.0,95120.0,0.29431566]
[1736349330351,0.0825,95163.0,95130.0,0.29431566]
[1736349330567,0.0825,95163.0,95121.0,0.19481976]
[1736349330568,0.00050162,95163.0,95150.0,0.29431566]
[1736349330804,0.00050162,95163.0,95152.0,0.210189]
[1736349331001,0.00050162,95163.0,95153.0,0.17185976]
[1736349331204,0.00050162,95163.0,95154.0,0.06969225]
[1736349331439,0.00050162,95163.0,95159.0,0.210174]
[1736349331726,0.00050162,95163.0,95162.0,0.12729976]
[1736349331898,0.0814,95203.0,95171.0,0.023]
[1736349332110,0.13979874,95214.0,95190.0,0.29431566]
[1736349332434,0.09309874,95214.0,95198.0,0.210086]
[1736349332640,0.09309874,95214.0,95201.0,0.210081]
[1736349332874,0.1,95227.0,95202.0,0.12484316]
[1736349333096,0.1,95207.0,95203.0,0.06756]
[1736349333355,0.1,95216.0,95203.0,0.06756]
[1736349333581,0.0467,95230.0,95204.0,0.11105576]
[1736349333582,0.1,95229.0,95204.0,0.11105576]
[1736349333770,0.0467,95230.0,95206.0,0.21007]
[1736349333975,0.0467,95230.0,95207.0,0.10429976]
[1736349334380,0.1,95228.0,95204.0,0.006756]
[1736349334601,0.1,95226.0,95205.0,0.06756]
[1736349334806,0.1,95221.0,95203.0,0.0001523]
[1736349335007,0.35,95227.0,95206.0,0.06756]
[1736349335222,0.0467,95230.0,95210.0,0.29431566]
[1736349335430,0.0467,95230.0,95203.0,0.0001523]
[1736349335431,0.0467,95230.0,95211.0,0.10429976]
[1736349335630,0.1,95226.0,95211.0,0.06756]
[1736349335802,0.1,95228.0,95211.0,0.06756]
[1736349336010,0.15,95227.0,95211.0,0.06756]
[1736349336184,0.1,95223.0,95203.0,0.0001523]
[1736349336388,0.1,95223.0,95204.0,0.06756]
[1736349336816,0.1,95211.0,95203.0,0.0001523]
[1736349337193,0.15,95215.0,95203.0,0.0001523]
[1736349337394,0.1,95212.0,95203.0,0.0001523]
[1736349337597,0.1,95204.0,95203.0,0.0001523]
[1736349337797,0.50361271,95204.0,95203.0,0.0001523]
[1736349338011,0.50361271,95204.0,95148.0,0.06752]
[1736349338012,0.1,95170.0,95148.0,0.06752]
[1736349338352,0.1,95167.0,95154.0,0.00015245]
[1736349338982,0.1,95164.0,95154.0,0.06767245]
[1736349339189,0.09990192,95167.0,95154.0,0.06767245]
[1736349339419,0.09990192,95167.0,95154.0,0.06771245]
[1736349339839,0.09990192,95164.0,95154.0,0.00015245]
[1736349340049,0.09990192,95167.0,95154.0,0.00015245]
[1736349340257,0.09990192,95164.0,95154.0,0.00015245]
[1736349340485,0.19990192,95169.0,95154.0,0.00015245]
[1736349340652,0.09990192,95165.0,95154.0,0.00015245]
[1736349340882,0.1,95169.0,95154.0,0.00015245]
[1736349340883,0.19990192,95169.0,95154.0,0.00015245]
[1736349341062,0.09990192,95172.0,95155.0,0.00677124]
[1736349341264,0.09990192,95172.0,95155.0,0.01774166]
[1736349341466,0.09990192,95172.0,95155.0,0.01097042]
[1736349341669,0.09990192,95165.0,95154.0,0.00015245]
[1736349341872,0.09990192,95165.0,95154.0,0.06771245]
[1736349342370,0.09990192,95165.0,95155.0,0.01097042]
[1736349343221,0.1,95170.0,95155.0,0.01097042]
[1736349343222,0.19990192,95170.0,95155.0,0.01097042]
[1736349343451,0.131,95173.0,95156.0,0.32234905]
[1736349343656,0.131,95173.0,95156.0,0.11216805]
[1736349344050,0.131,95173.0,95157.0,0.01096149]
[1736349344258,0.131,95173.0,95158.0,0.10429976]
[1736349344494,0.1,95238.0,95158.0,0.10429976]
[1736349344495,0.0821,95187.0,95158.0,0.10429976]
[1736349344666,0.0821,95187.0,95159.0,0.02038721]
[1736349344900,0.0821,95187.0,95163.0,0.210163]
[1736349345111,0.0821,95187.0,95164.0,0.10429976]
[1736349345322,0.09990192,95180.0,95165.0,0.06756]
[1736349345527,0.1,95177.0,95159.0,0.01095257]
[1736349345731,0.1,95179.0,95166.0,0.08156133]
[1736349345934,0.09990192,95192.0,95167.0,0.10429976]
[1736349346148,0.09990192,95193.0,95167.0,0.10429976]
[1736349346330,0.1,95192.0,95167.0,0.10429976]
[1736349346629,0.09990192,95193.0,95167.0,0.10429976]
[1736349346845,0.19990192,95193.0,95167.0,0.10429976]
[1736349347139,0.19990192,95193.0,95170.0,0.02091106]
[1736349347379,0.0779,95201.0,95171.0,0.10429976]
[1736349347492,0.0779,95201.0,95176.0,0.210136]
[1736349347695,0.15,95206.0,95178.0,0.210132]
[1736349347918,0.0495,95207.0,95177.0,0.18828051]
[1736349347919,0.0495,95207.0,95180.0,0.29431566]
[1736349348151,0.0495,95207.0,95186.0,0.210114]
[1736349348303,0.17780192,95214.0,95181.0,0.32527818]
[1736349348304,0.0779,95214.0,95187.0,0.10429976]
[1736349348494,0.0779,95214.0,95190.0,0.29431566]
[1736349348702,0.0779,95214.0,95198.0,0.02119725]
[1736349348925,0.0779,95214.0,95199.0,0.10429976]
[1736349349130,0.0495,95223.0,95199.0,0.10429976]
[1736349349336,0.0495,95223.0,95199.0,0.10445221]
[1736349349510,0.0495,95223.0,95200.0,0.24365625]
[1736349349720,0.0485,95223.0,95201.0,0.10429976]
[1736349349922,0.0485,95223.0,95202.0,0.07064]
[1736349350155,0.0777,95228.0,95203.0,0.10429976]
[1736349350348,0.09309874,95241.0,95203.0,0.10429976]
[1736349350349,0.09990192,95239.0,95210.0,0.29431566]
[1736349350548,0.0779,95241.0,95200.0,0.03357425]
[1736349350549,0.09990192,95222.0,95200.0,0.03357425]
[1736349350766,0.09990192,95222.0,95199.0,0.01311428]
[1736349350767,0.09990192,95222.0,95211.0,0.07064]
[1736349350976,0.210016,95231.0,95199.0,0.00015245]
[1736349350977,0.09990192,95209.0,95199.0,0.00015245]
[1736349351177,0.1,95213.0,95199.0,0.00015245]
[1736349351178,0.34990192,95213.0,95199.0,0.00015245]
[1736349351518,0.09990192,95201.0,95199.0,0.00015245]
[1736349351716,0.0818,95215.0,95199.0,0.00015245]
[1736349351717,0.09990192,95207.0,95199.0,0.00015245]
[1736349352151,0.09990192,95200.0,95199.0,0.00015245]
[1736349352365,0.45551469,95200.0,95199.0,0.00015245]
[1736349352569,0.48603869,95200.0,95199.0,0.00015245]
[1736349352911,0.53343869,95200.0,95199.0,0.00015245]
[1736349353756,0.32913893,95200.0,95199.0,0.00015245]
[1736349354005,0.29730192,95200.0,95199.0,0.00015245]
[1736349354177,0.24730192,95200.0,95199.0,0.00015245]
[1736349355006,0.0474,95200.0,95199.0,0.00015245]
[1736349355294,0.24730192,95200.0,95199.0,0.00015245]
[1736349355501,0.39730192,95200.0,95199.0,0.00015245]
[1736349355713,0.7435454,95200.0,95199.0,0.00015245]
[1736349355927,0.5334614,95200.0,95199.0,0.00015245]
[1736349357688,0.42916164,95200.0,95199.0,0.00015245]
[1736349358102,0.17235846,95200.0,95199.0,0.00015245]
[1736349358310,0.09309874,95200.0,95199.0,0.07079245]
[1736349358526,0.09309874,95200.0,95199.0,0.0778717]
[1736349358732,0.09309874,95200.0,95199.0,0.17509221]
[1736349359135,0.09309874,95200.0,95199.0,0.18787507]
[1736349359514,0.18720326,95205.0,95199.0,0.18787507]
[1736349359515,0.09309874,95220.0,95200.0,0.210084]
[1736349359713,0.09309874,95220.0,95201.0,0.10429976]
[1736349359946,0.09309874,95220.0,95202.0,0.03979671]
[1736349360119,0.09309874,95220.0,95199.0,0.01293531]
[1736349360120,0.09309874,95220.0,95203.0,0.17493976]
[1736349360700,0.6,95230.0,95210.0,0.29431566]
[1736349360902,0.6,95230.0,95213.0,0.023]
[1736349361115,0.6,95230.0,95214.0,0.10429976]
[1736349361518,0.6,95230.0,95200.0,0.21018108]
[1736349361519,0.69990192,95230.0,95215.0,0.07064]
[1736349361700,0.09990192,95224.0,95216.0,0.07064]
[1736349361896,0.09990192,95218.0,95199.0,0.00015245]
[1736349362128,0.09990192,95218.0,95208.0,0.07064]
[1736349362388,0.6,95230.0,95208.0,0.07064]
[1736349362554,0.09990192,95224.0,95208.0,0.07064]
[1736349362730,0.09990192,95224.0,95208.0,0.077704]
[1736349362928,0.09990192,95219.0,95200.0,0.10429976]
[1736349363132,0.210025,95227.0,95199.0,0.00015245]
[1736349363133,0.19990192,95200.0,95199.0,0.00015245]
[1736349363367,0.48615212,95200.0,95199.0,0.00015245]
[1736349364879,0.56235212,95200.0,95199.0,0.00015245]
[1736349366111,0.84318791,95200.0,95199.0,0.00015245]
[1736349366526,0.84318791,95200.0,95144.0,0.21030308]
[1736349366527,0.84318791,95200.0,95138.0,9.808e-05]
[1736349366735,0.84318791,95200.0,95127.0,0.000105]
[1736349366736,0.09990192,95166.0,95149.0,0.00050162]
[1736349366934,0.03195044,95165.0,95149.0,0.00050162]
[1736349367772,0.03195044,95165.0,95150.0,0.07064]
[1736349368182,0.03195044,95165.0,95152.0,0.02081003]
[1736349368372,0.1,95169.0,95153.0,0.10429976]
[1736349368587,0.1,95183.0,95153.0,0.10429976]
[1736349368808,0.09356644,95165.0,95162.0,0.210167]
[1736349369012,0.09356644,95165.0,95163.0,0.10429976]
[1736349369218,0.09356644,95165.0,95164.0,0.27104174]
[1736349369425,0.09356644,95165.0,95164.0,0.48997461]
[1736349369623,0.12977168,95167.0,95166.0,0.21025708]
[1736349369828,0.12977168,95167.0,95166.0,0.33755684]
[1736349370034,0.14659133,95170.0,95169.0,0.21025008]
[1736349370239,0.14659133,95197.0,95177.0,9.808e-05]
[1736349370440,0.14659133,95197.0,95180.0,0.210127]
[1736349370646,0.14659133,95197.0,95169.0,0.32774983]
[1736349370647,0.14659133,95197.0,95181.0,0.17493976]
[1736349370881,0.09990192,95188.0,95164.0,0.02099311]
[1736349371088,0.15,95194.0,95170.0,0.07064]
[1736349371089,0.09990192,95171.0,95170.0,0.07064]
[1736349371228,0.1,95179.0,95147.0,0.01285597]
[1736349371229,0.1,95179.0,95159.0,0.07064]
[1736349371433,0.1,95177.0,95160.0,0.11136376]
[1736349371632,0.1,95177.0,95161.0,0.07064]
[1736349371845,0.1,95177.0,95161.0,0.17493976]
[1736349372063,0.1,95177.0,95161.0,0.10429976]
[1736349372305,0.1,95177.0,95162.0,0.07064]
[1736349372532,0.15,95189.0,95162.0,0.08884038]
[1736349372533,0.09990192,95181.0,95162.0,0.08884038]
[1736349372748,0.19990192,95179.0,95162.0,0.08884038]
[1736349372951,0.09990192,95182.0,95163.0,0.17493976]
[1736349373154,0.25,95183.0,95163.0,0.17493976]
[1736349373373,0.1255,95192.0,95163.0,0.17493976]
[1736349373576,0.09990192,95184.0,95164.0,0.14110908]
[1736349373780,0.09990192,95184.0,95165.0,0.17493976]
[1736349373982,0.09990192,95184.0,95166.0,0.07064]
[1736349374155,0.1,95181.0,95166.0,0.10429976]
[1736349374364,0.19990192,95179.0,95167.0,0.07064]
[1736349374571,0.19990192,95179.0,95168.0,0.07064]
[1736349374794,0.15,95172.0,95131.0,9.808e-05]
[1736349374931,0.09990192,95167.0,95151.0,0.0208437]
[1736349375131,0.09990192,95167.0,95152.0,0.01954051]
[1736349375334,0.09990192,95165.0,95151.0,0.0208437]
[1736349375540,0.09990192,95165.0,95152.0,0.06976]
[1736349376204,0.1217,95164.0,95151.0,0.0208437]
[1736349376523,0.09990192,95155.0,95147.0,0.00050162]
[1736349376657,0.1,95158.0,95147.0,0.00050162]
[1736349376859,0.09990192,95155.0,95147.0,0.00050162]
[1736349377080,0.09990192,95150.0,95147.0,0.00050162]
[1736349378285,0.34990192,95148.0,95147.0,0.00050162]
[1736349378484,0.25,95148.0,95147.0,0.00050162]
[1736349378693,0.210152,95169.0,95147.0,0.07728778]
[1736349378694,0.09990192,95159.0,95147.0,0.07728778]
[1736349378889,0.1,95152.0,95147.0,0.07026162]
[1736349379172,0.1,95151.0,95147.0,0.07026162]
[1736349379448,0.09990192,95148.0,95147.0,0.00050162]
[1736349379991,0.45420168,95148.0,95147.0,0.00050162]
[1736349380169,0.48626993,95148.0,95147.0,0.00050162]
[1736349380370,0.48626993,95148.0,95115.0,8.54e-05]
[1736349380371,0.19990192,95128.0,95115.0,8.54e-05]
[1736349380592,0.23197017,95128.0,95116.0,0.06976]
[1736349380915,0.38197017,95128.0,95116.0,0.06976]
[1736349381116,0.61126993,95128.0,95115.0,8.54e-05]
[1736349382181,0.64098436,95128.0,95115.0,8.54e-05]
[1736349382381,0.49098436,95128.0,95115.0,8.54e-05]
[1736349382583,0.45881803,95128.0,95115.0,8.54e-05]
[1736349382794,0.45881803,95128.0,95121.0,0.0698]
[1736349382795,0.23391611,95128.0,95121.0,0.0698]
[1736349383000,0.28069934,95136.0,95127.0,0.11139526]
[1736349383001,0.09366644,95129.0,95127.0,0.11139526]
[1736349383248,0.09366644,95129.0,95128.0,0.10429976]
[1736349383561,0.08010659,95129.0,95128.0,0.19709976]
[1736349383792,0.04797213,95134.0,95133.0,0.23332908]
[1736349383990,0.02065724,95210.0,95133.0,0.23332908]
[1736349383991,0.09990192,95183.0,95143.0,0.233209]
[1736349384193,0.18741612,95161.0,95143.0,0.10429976]
[1736349384394,0.18741612,95161.0,95145.0,0.210205]
[1736349384626,0.18741612,95161.0,95147.0,0.233201]
[1736349384829,0.28069934,95172.0,95155.0,9.808e-05]
[1736349385086,0.28069934,95172.0,95171.0,0.233148]
[1736349385345,0.28069934,95172.0,95171.0,0.40724776]
[1736349385550,1.0483,95200.0,95179.0,0.21013]
[1736349385755,0.09990192,95186.0,95179.0,0.0698]
[1736349385963,0.09990192,95173.0,95166.0,0.0698]
[1736349386162,0.09990192,95173.0,95167.0,0.0698]
[1736349386370,0.09990192,95173.0,95168.0,0.0698]
[1736349386601,0.09990192,95173.0,95169.0,0.0698]
[1736349386809,0.1,95177.0,95170.0,0.0698]
[1736349387017,0.1,95172.0,95169.0,0.0091938]
[1736349387220,0.1,95186.0,95169.0,0.0091938]
[1736349387431,1.1483,95200.0,95171.0,0.210148]
[1736349387632,0.1,95191.0,95172.0,0.17405976]
[1736349387850,0.1,95178.0,95146.0,0.00015245]
[1736349388056,0.1,95170.0,95147.0,0.10429976]
[1736349388274,0.00131308,95196.0,95146.0,0.00015245]
[1736349388275,0.1,95156.0,95146.0,0.00015245]
[1736349389129,0.1981,95163.0,95147.0,0.10429976]
[1736349389130,0.0481,95163.0,95147.0,0.10429976]
[1736349390001,0.1481,95163.0,95148.0,0.06976]
[1736349390204,0.1481,95163.0,95148.0,0.01627875]
[1736349390381,0.2481,95163.0,95149.0,0.06976]
[1736349390586,0.1481,95163.0,95149.0,0.06976]